bitfinex/quotes_SOLUSD_20241009
["timestamp","ask_amount","ask_price","bid_price","bid_amount"]
[1728500831585,0.93752048,140.76,140.7,76.3999]
[1728500831776,7.1052,140.75,140.71,7.1066]
[1728500831976,0.93752048,140.77,140.72,1.42107847]
[1728500832177,0.93752048,140.77,140.71,17.7668]
[1728500832178,7.1048,140.75,140.71,24.8735]
[1728500832387,0.93752048,140.74,140.7,7.1071]
[1728500832616,0.93752048,140.74,140.69,7.1077]
[1728500832617,7.1064,140.72,140.69,7.1077]
[1728500832896,7.1064,140.72,140.68,17.7697]
[1728500833293,7.1064,140.72,140.69,7.1077]
[1728500833508,7.1063,140.72,140.69,7.1077]
[1728500833803,7.1063,140.72,140.68,24.8777]
[1728500835278,8.04432048,140.71,140.67,7.1086]
[1728500835482,0.93752048,140.71,140.67,7.1086]
[1728500835684,7.1073,140.7,140.67,7.1086]
[1728500836391,7.1063,140.72,140.68,7.1079]
[1728500836702,0.93752048,140.76,140.71,17.7669]
[1728500836994,7.1058,140.73,140.69,7.35828]
[1728500837199,0.93752048,140.72,140.68,24.8776]
[1728500837396,7.1063,140.72,140.68,24.8776]
[1728500837599,7.1059,140.73,140.69,8.52896141]
[1728500838103,0.93752048,140.75,140.7,17.7677]
[1728500838393,7.1056,140.74,140.7,24.8746]
[1728500838596,7.1062,140.73,140.69,7.1076]
[1728500839073,7.1068,140.71,140.68,7.1081]
[1728500839277,17.7621,140.75,140.68,7.1081]
[1728500839278,7.1064,140.72,140.68,7.23349]
[1728500840084,7.1064,140.72,140.68,7.108]
[1728500840284,8.04472048,140.71,140.67,24.8796]
[1728500840490,7.1073,140.7,140.67,24.8796]
[1728500841196,7.107,140.71,140.67,24.8796]
[1728500841402,0.93752048,140.7,140.64,17.7747]
[1728500841605,0.93752048,140.7,140.65,7.1096]
[1728500841606,7.1082,140.69,140.65,7.1096]
[1728500842194,7.1082,140.69,140.65,8.53131321]
[1728500844198,8.04442048,140.71,140.67,7.1087]
[1728500844497,7.1061,140.73,140.69,7.1077]
[1728500844702,33.88332048,140.76,140.7,8.5283489]
[1728500844703,7.1053,140.74,140.7,8.5283489]
[1728500845082,0.93752048,140.75,140.7,19.1895489]
[1728500845299,7.1049,140.75,140.71,7.1067]
[1728500846292,8.04242048,140.75,140.71,7.1067]
[1728500848402,0.93752048,140.78,140.72,19.18669524]
[1728500848702,8.04092048,140.78,140.74,7.1052]
[1728500848907,0.93752048,140.82,140.76,70.25098]
[1728500849118,7.1007,140.83,140.78,7.1031]
[1728500849407,0.93752048,140.82,140.77,7.1036]
[1728500849581,7.1013,140.82,140.77,7.1036]
[1728500849788,8.03932048,140.81,140.77,7.1036]
[1728500849982,7.1018,140.81,140.77,7.1036]
[1728500850600,0.93752048,140.83,140.78,1.42047133]
[1728500850907,7.1013,140.82,140.78,24.8607]
[1728500851997,0.93752048,140.81,140.78,17.7576]
[1728500852307,7.1026,140.8,140.75,24.8658]
[1728500852505,7.1019,140.81,140.76,7.1041]
[1728500852709,0.93752048,140.83,140.76,7.1041]
[1728500852710,8.03982048,140.8,140.76,7.1041]
[1728500852898,7.1023,140.8,140.76,7.1041]
[1728500855407,43.776884,140.77,140.67,70.0]
[1728500855610,7.1067,140.72,140.68,3.79948692]
[1728500855786,7.1073,140.7,140.66,17.7725]
[1728500856402,7.1073,140.7,140.67,1.42164283]
[1728500856603,7.1073,140.7,140.66,17.7725]
[1728500856794,7.1073,140.7,140.66,24.8816]
[1728500856995,0.93752048,140.73,140.67,1.42156137]
[1728500856996,20.93752048,140.73,140.67,1.42156137]
[1728500857187,7.1066,140.72,140.67,8.53026137]
[1728500857401,7.1064,140.72,140.68,7.1081]
[1728500857607,7.1059,140.73,140.69,1.42135152]
[1728500858197,7.1053,140.74,140.7,7.1072]
[1728500858402,7.1048,140.75,140.71,1.42110728]
[1728500858890,7.1048,140.75,140.71,8.52780728]
[1728500859715,7.1048,140.75,140.71,7.1067]
[1728500860048,7.1048,140.75,140.71,8.5278256]
[1728500860686,7.1048,140.75,140.71,7.1067]
[1728500860916,7.1048,140.75,140.71,8.52782668]
[1728500861510,0.93752048,140.76,140.71,7.1067]
[1728500861707,7.1044,140.76,140.71,7.1067]
[1728500862008,7.1044,140.76,140.72,7.106]
[1728500862606,8.04142048,140.77,140.73,1.42098524]
[1728500862915,33.2995,140.82,140.73,70.0]
[1728500863117,0.93752048,140.81,140.75,0.25098]
[1728500863299,0.93752048,140.81,140.76,7.1041]
[1728500863300,7.1024,140.8,140.76,7.1041]
[1728500863522,7.1028,140.79,140.75,7.35558]
[1728500864014,0.93752048,140.81,140.74,24.8674]
[1728500864015,7.1032,140.78,140.74,24.8674]
[1728500864516,0.93752048,140.81,140.74,17.7625]
[1728500864720,7.1046,140.76,140.72,7.1062]
[1728500865022,0.93752048,140.79,140.71,17.766]
[1728500865220,18.69472048,140.79,140.71,17.766]
[1728500865420,7.1033,140.78,140.74,7.1052]
[1728500865607,0.93752048,140.79,140.73,87.7642]
[1728500865808,7.1038,140.77,140.73,24.8698]
[1728500866918,7.1038,140.77,140.73,94.8698]
[1728500867833,7.1033,140.78,140.74,7.1051]
[1728500868205,0.93752048,140.81,140.73,87.7642]
[1728500868507,7.1038,140.77,140.73,94.8698]
[1728500868716,7.1043,140.76,140.73,17.7642]
[1728500869030,0.93752048,140.79,140.71,0.12549]
[1728500869203,0.93752048,140.79,140.7,87.7672]
[1728500869526,17.7585,140.78,140.7,87.7672]
[1728500869727,7.1056,140.74,140.7,94.8743]
[1728500870111,7.1058,140.73,140.7,87.7672]
[1728500871825,7.1054,140.74,140.7,94.8744]
[1728500872731,7.1054,140.74,140.71,1.42113758]
[1728500873328,7.1054,140.74,140.7,94.8744]
[1728500877216,7.1044,140.76,140.72,7.1061]
[1728500877413,7.1044,140.76,140.73,1.42096076]
[1728500877828,7.1048,140.75,140.71,7.1066]
[1728500878031,0.93752048,140.78,140.7,70.0]
[1728500879118,7.1061,140.73,140.7,70.0]
[1728500879834,7.1061,140.73,140.69,25.00249]
[1728500880439,8.04422048,140.72,140.68,7.1081]
[1728500882014,7.1067,140.72,140.68,7.1081]
[1728500882212,0.93752048,140.74,140.66,87.7722]
[1728500882415,7.107,140.71,140.67,7.1085]
[1728500882616,7.1064,140.72,140.68,8.52953841]
[1728500883149,8.04392048,140.72,140.68,7.1081]
[1728500883442,7.1076,140.7,140.66,24.8815]
[1728500883761,7.1069,140.71,140.67,7.1085]
[1728500884224,0.93752048,140.7,140.64,91.7308]
[1728500884433,17.7659,140.72,140.65,7.1098]
[1728500884434,7.1079,140.69,140.65,7.1098]
[1728500884738,7.1088,140.67,140.63,24.8873]
[1728500885056,8.04682048,140.66,140.62,7.1111]
[1728500885214,7.1093,140.66,140.62,7.1111]
[1728500885726,7.109,140.67,140.63,7.1108]
[1728500886249,0.93752048,140.68,140.62,17.7779]
[1728500886639,7.1099,140.65,140.61,13.7589]
[1728500887028,7.1099,140.65,140.61,7.1114]
[1728500887238,0.93752048,140.68,140.59,17.7811]
[1728500887239,0.93752048,140.64,140.59,17.7811]
[1728500887437,0.93752048,140.64,140.58,22.7365]
[1728500887438,7.1114,140.62,140.58,7.1133]
[1728500888341,7.1108,140.64,140.59,7.1127]
[1728500888553,7.11,140.65,140.6,71.42222515]
[1728500888721,0.93752048,140.66,140.6,87.7806]
[1728500888921,7.1102,140.65,140.61,7.1117]
[1728500889342,8.04692048,140.66,140.61,7.1117]
[1728500889626,8.04692048,140.66,140.62,7.1112]
[1728500889827,8.04692048,140.66,140.61,7.1114]
[1728500889828,8.04702048,140.66,140.61,7.1114]
[1728500890242,8.04702048,140.66,140.62,8.53334372]
[1728500890426,8.04702048,140.66,140.62,7.1113]
[1728500891446,7.1095,140.66,140.62,7.1113]
[1728500892161,7.109,140.67,140.63,1.42197795]
[1728500892353,7.109,140.67,140.63,8.53277795]
[1728500892533,7.1093,140.66,140.62,24.8892]
[1728500892733,0.93752048,140.68,140.63,1.4219362]
[1728500892946,7.1089,140.67,140.63,1.4219362]
[1728500893249,7.1089,140.67,140.62,24.8892]
[1728500894146,16.99742048,140.69,140.63,1.42193092]
[1728500894349,7.1083,140.68,140.64,7.1102]
[1728500894542,7.1088,140.67,140.63,7.1105]
[1728500894943,7.1088,140.67,140.64,1.42181195]
[1728500895142,7.1088,140.67,140.63,7.1105]
[1728500895344,16.99742048,140.69,140.64,8.5321135]
[1728500895345,7.1084,140.68,140.64,8.5321135]
[1728500896351,16.19402048,140.72,140.65,1.42180067]
[1728500896655,7.1074,140.7,140.66,7.1093]
[1728500896836,7.1074,140.7,140.67,1.42159603]
[1728500897034,16.19402048,140.72,140.67,1.42159603]
[1728500897360,7.107,140.71,140.67,7.1085]
[1728500897731,8.04392048,140.72,140.68,7.1082]
[1728500897939,7.1073,140.7,140.66,24.8819]
[1728500898132,0.93752048,140.73,140.64,70.0]
[1728500898332,7.1081,140.69,140.65,7.1097]
[1728500899758,0.93752048,140.73,140.65,17.7744]
[1728500900157,7.1077,140.7,140.66,7.1092]
[1728500900650,7.1079,140.69,140.65,24.8841]
[1728500900851,7.1086,140.68,140.64,7.1101]
[1728500901029,7.1079,140.69,140.65,7.1097]
[1728500901236,0.93752048,140.71,140.64,17.7755]
[1728500901455,7.1083,140.68,140.64,24.8856]
[1728500902164,7.108,140.69,140.65,8.53101155]
[1728500902835,39.6784,140.75,140.66,70.0]
[1728500903040,0.93752048,140.74,140.67,1.42145453]
[1728500903353,7.1061,140.73,140.69,7.1077]
[1728500903561,7.1061,140.73,140.7,1.42127903]
[1728500903755,7.1061,140.73,140.69,8.52897882]
[1728500904247,7.1061,140.73,140.69,7.1077]
[1728500904850,7.1061,140.73,140.7,1.42132326]
[1728500905082,7.1061,140.73,140.69,7.1077]
[1728500905244,8.04412048,140.72,140.68,94.8786]
[1728500905442,7.1066,140.72,140.68,94.8786]
[1728500908263,15.2565,140.75,140.71,7.1067]
[1728500908264,7.1049,140.75,140.71,7.1067]
[1728500908560,0.93752048,140.74,140.68,70.0]
[1728500908768,0.93752048,140.77,140.68,70.0]
[1728500909151,7.1066,140.72,140.68,77.1079]
[1728500909542,0.93752048,140.74,140.68,70.0]
[1728500909746,7.1059,140.73,140.69,8.52897318]
[1728500910072,7.1059,140.73,140.69,7.1077]
[1728500911455,7.1055,140.74,140.7,7.1069]
[1728500911641,7.1058,140.73,140.69,7.1074]
[1728500914546,7.1063,140.72,140.68,24.8786]
[1728500915854,7.1059,140.73,140.7,7.1072]
[1728500916055,7.1059,140.73,140.68,87.7705]
[1728500916266,7.1059,140.73,140.69,7.1076]
[1728500916856,7.1056,140.74,140.7,26.29625162]
[1728500917070,7.1049,140.75,140.71,7.1067]
[1728500917265,7.1049,140.75,140.72,1.4211171]
[1728500917440,7.1044,140.76,140.72,8.5272171]
[1728500917768,7.1049,140.75,140.71,7.1066]
[1728500918344,0.93752048,140.78,140.72,71.42101398]
[1728500918551,7.1035,140.78,140.74,7.1051]
[1728500919669,0.93752048,140.81,140.73,17.7632]
[1728500919670,7.1023,140.8,140.76,7.104]
[1728500920982,0.93752048,140.81,140.77,1.42068462]
[1728500921262,7.103,140.79,140.75,24.8657]
[1728500924364,0.93752048,140.78,140.73,0.25098]
[1728500924567,16.2794,140.82,140.73,0.25098]
[1728500924568,18.69222048,140.81,140.73,0.25098]
[1728500924948,0.93752048,140.81,140.74,87.7624]
[1728500925352,0.93752048,140.81,140.75,7.1043]
[1728500925353,7.1031,140.79,140.75,7.1043]
[1728500926452,0.93752048,140.78,140.74,17.7624]
[1728500926652,0.93752048,140.81,140.74,17.7624]
[1728500927052,0.93752048,140.81,140.74,87.7624]
[1728500927257,7.1029,140.79,140.75,7.1043]
[1728500927459,7.1024,140.8,140.76,7.1042]
[1728500928073,16.2794,140.82,140.77,1.42060358]
[1728500928252,7.1018,140.81,140.77,8.52410358]
[1728500928449,7.1027,140.79,140.76,17.76]
[1728500928750,7.1027,140.79,140.75,7.22999]
[1728500929149,7.1041,140.77,140.74,17.7632]
[1728500936590,0.93752048,140.8,140.73,7.1057]
[1728500936888,7.1039,140.77,140.74,7.1052]
[1728500937379,7.1039,140.77,140.73,7.1056]
[1728500940479,0.93752048,140.8,140.74,8.52598529]
[1728500940678,7.1034,140.78,140.74,8.52598529]
[1728500940884,7.1034,140.78,140.74,7.1052]
[1728500941457,0.93752048,140.8,140.74,7.1052]
[1728500941662,7.1039,140.77,140.74,7.1052]
[1728500942284,7.1039,140.77,140.73,24.99439]
[1728500944084,17.7571,140.79,140.7,87.7672]
[1728500944283,7.1051,140.75,140.71,7.1066]
[1728500944564,18.69462048,140.79,140.72,19.18655223]
[1728500945299,0.93752048,140.78,140.72,19.18655223]
[1728500945468,7.1039,140.77,140.73,7.1056]
[1728500946364,7.1039,140.77,140.74,1.42086422]
[1728500946564,7.1039,140.77,140.73,77.1056]
[1728500946965,7.1039,140.77,140.73,7.1056]
[1728500947385,7.1043,140.76,140.72,17.7656]
[1728500947591,7.1043,140.76,140.72,24.8717]
[1728500947780,7.1048,140.75,140.72,17.7656]
[1728500948172,7.1053,140.74,140.71,7.1066]
[1728500948380,7.1053,140.74,140.69,94.4194]
[1728500948381,7.1053,140.74,140.7,7.1071]
[1728500950398,7.1053,140.74,140.69,94.54489]
[1728500950399,7.1053,140.74,140.71,7.1067]
[1728500951998,7.1049,140.75,140.71,7.1067]
[1728500953911,18.69242048,140.81,140.73,0.12549]
[1728500954216,7.1008,140.83,140.79,7.1024]
[1728500954420,7.1008,140.83,140.8,1.42029827]
[1728500954615,7.1003,140.84,140.8,8.52249827]
[1728500954795,7.1012,140.82,140.79,17.7567]
[1728500955217,0.93752048,140.85,140.76,83.58621533]
[1728500955218,7.1017,140.81,140.76,87.7596]
[1728500955410,7.1017,140.81,140.77,7.1036]
[1728500956202,18.68712048,140.85,140.76,17.7596]
[1728500956523,7.1023,140.8,140.76,24.8637]
[1728500957195,18.68712048,140.85,140.77,7.1037]
[1728500957196,7.1018,140.81,140.77,7.1037]
[1728500957395,7.1012,140.82,140.78,7.1029]
[1728500957594,7.1012,140.82,140.79,1.42029487]
[1728500958112,7.1008,140.83,140.79,8.52299487]
[1728500958801,7.1008,140.83,140.79,7.1027]
[1728500960130,0.93752048,140.85,140.78,87.7579]
[1728500960329,7.1018,140.81,140.77,7.1036]
[1728500962001,0.93752048,140.85,140.78,1.420351]
[1728500962324,0.93752048,140.85,140.8,7.1022]
[1728500962618,15.2577,140.86,140.8,7.1022]
[1728500962619,7.1003,140.84,140.81,1.4201034]
[1728500963002,7.1007,140.83,140.79,24.8593]
[1728500963201,0.93752048,140.82,140.77,7.35458]
[1728500963413,0.93752048,140.84,140.77,7.35458]
[1728500963601,0.93752048,140.84,140.77,7.22909]
[1728500964212,7.1019,140.81,140.77,7.22909]
[1728500964906,7.1029,140.79,140.76,24.8637]
[1728500965103,0.93752048,140.82,140.76,24.8637]
[1728500965303,7.1024,140.8,140.76,24.8637]
[1728500966825,7.1024,140.8,140.76,24.8637]
[1728500967706,7.1028,140.79,140.76,17.7595]
[1728500968214,7.1032,140.78,140.74,7.1052]
[1728500968404,17.7544,140.81,140.73,24.99469]
[1728500968405,17.43742048,140.8,140.73,24.99469]
[1728500968610,7.1043,140.76,140.73,24.99469]
[1728500969727,7.1038,140.77,140.73,94.99469]
[1728500970316,7.1038,140.77,140.73,24.99469]
[1728500970522,7.1038,140.77,140.73,94.99469]
[1728500972120,17.43742048,140.8,140.72,7.1061]
[1728500972121,7.1043,140.76,140.72,7.1061]
[1728500972429,16.4999,140.8,140.7,17.767]
[1728500972430,17.7599,140.77,140.7,17.767]
[1728500972731,7.1056,140.74,140.7,24.8742]
[1728500973111,7.1056,140.74,140.7,94.8742]
[1728500973311,7.1056,140.74,140.7,24.8742]
[1728500973936,7.1056,140.74,140.7,94.8742]
[1728500974436,7.105,140.75,140.71,7.1067]
[1728500975638,0.93752048,140.76,140.7,17.767]
[1728500975639,7.1057,140.74,140.7,24.8742]
[1728500978137,7.1057,140.74,140.7,94.8742]
[1728500979311,7.1057,140.74,140.71,7.1067]
[1728500981117,7.1059,140.73,140.7,17.767]
[1728500981518,17.7622,140.75,140.68,70.0]
[1728500981712,17.7622,140.75,140.69,7.1075]
[1728500981713,7.1059,140.73,140.69,7.1075]
[1728500981914,7.1064,140.72,140.68,7.23359]
[1728500984113,7.1064,140.72,140.68,77.23359]
[1728500984331,0.93752048,140.74,140.69,7.1076]
[1728500984332,7.1059,140.73,140.69,7.1076]
[1728500985220,7.1063,140.72,140.69,7.1076]
[1728500987235,7.1059,140.73,140.69,7.1076]
[1728500989539,7.1059,140.73,140.68,70.12549]
[1728500989540,0.93752048,140.74,140.67,17.7709]
[1728500989928,0.93752048,140.74,140.68,7.1082]
[1728500990233,7.1066,140.72,140.68,7.1082]
[1728500991028,7.1066,140.72,140.67,17.7709]
[1728500991029,0.93752048,140.74,140.67,17.7709]
[1728500991226,7.1058,140.73,140.69,8.52869004]
[1728500992940,7.1058,140.73,140.69,7.1074]
[1728500995132,7.1058,140.73,140.7,8.528418]
[1728500996542,0.93752048,140.77,140.72,7.1062]
[1728500996844,7.1046,140.76,140.73,1.42095686]
[1728501000819,0.93752048,140.77,140.73,1.42095686]
[1728501001021,7.1038,140.77,140.73,7.1057]
[1728501001231,15.4997,140.79,140.74,8.52599428]
[1728501001450,0.93752048,140.8,140.74,8.52599428]
[1728501001451,7.1035,140.78,140.75,7.1047]
[1728501001748,0.93752048,140.8,140.74,7.1051]
[1728501001928,0.93752048,140.8,140.72,70.0]
[1728501001929,7.1053,140.74,140.72,70.0]
[1728501002325,7.1062,140.73,140.69,7.1077]
[1728501002836,7.1064,140.72,140.68,7.1081]
[1728501003039,17.762,140.75,140.67,24.3842]
[1728501003247,7.1069,140.71,140.67,31.4926]
[1728501003921,0.93752048,140.74,140.67,17.771]
[1728501003922,7.1073,140.7,140.67,17.771]
[1728501004249,7.1079,140.69,140.65,7.1096]
[1728501005627,0.93752048,140.72,140.66,89.19458305]
[1728501005828,7.107,140.71,140.67,7.1084]
[1728501006043,7.1066,140.72,140.68,7.1082]
[1728501007348,7.1068,140.71,140.67,7.35958]
[1728501009641,7.1065,140.72,140.67,0.25098]
[1728501009842,7.1059,140.73,140.69,7.1077]
[1728501010188,7.1059,140.73,140.7,1.42121939]
[1728501010350,7.1064,140.72,140.68,94.8787]
[1728501010927,7.1064,140.72,140.68,24.8787]
[1728501012747,7.1071,140.71,140.68,17.7706]
[1728501014237,7.1078,140.69,140.66,0.25098]
[1728501014633,7.1089,140.67,140.66,3.8190858]
[1728501014835,7.1089,140.67,140.64,3.8190858]
[1728501015132,7.1089,140.67,140.63,17.54348981]
[1728501015844,7.1085,140.68,140.64,7.1102]
[1728501017230,7.1089,140.67,140.63,17.54358981]
[1728501017841,7.1089,140.67,140.64,7.1103]
[1728501018860,7.1089,140.67,140.63,17.54416623]
[1728501019045,7.1089,140.67,140.64,7.1102]
[1728501020172,0.93752048,140.7,140.63,3.82036623]
[1728501020357,7.1107,140.64,140.62,3.82036623]
[1728501020656,7.1107,140.64,140.61,3.81999255]
[1728501020957,17.772,140.68,140.61,3.81999255]
[1728501020958,0.93752048,140.67,140.61,10.93169255]
[1728501021134,0.93752048,140.67,140.61,3.81999255]
[1728501021334,7.11,140.65,140.61,10.93169255]
[1728501021535,7.11,140.65,140.61,7.1117]
[1728501021850,7.1107,140.64,140.61,3.81871691]
[1728501022036,0.93752048,140.67,140.61,3.81871691]
[1728501022234,7.11,140.65,140.61,10.93051691]
[1728501022434,7.11,140.65,140.61,7.1118]
[1728501022945,7.11,140.65,140.61,10.92939319]
[1728501023259,7.11,140.65,140.61,10.92836688]
[1728501024257,7.11,140.65,140.61,7.1118]
[1728501024782,0.93752048,140.67,140.6,70.0]
[1728501025065,7.1107,140.64,140.6,71.42214879]
[1728501025866,7.1107,140.64,140.6,78.53444879]
[1728501026155,7.1107,140.64,140.6,77.1123]
[1728501026659,7.1107,140.64,140.6,78.53444787]
[1728501026865,7.1099,140.65,140.61,7.1118]
[1728501027071,20.0,140.7,140.62,1.42200702]
[1728501027262,7.1086,140.68,140.64,7.1102]
[1728501027557,7.1088,140.67,140.64,1.4217719]
[1728501027762,7.1088,140.67,140.63,25.01309]
[1728501028070,7.1088,140.67,140.64,1.42177672]
[1728501028646,7.1084,140.68,140.64,1.42177672]
[1728501028844,7.1084,140.68,140.64,77.1103]
[1728501031067,41.0882,140.67,140.59,1.42165651]
[1728501031378,7.1121,140.61,140.56,94.8992]
[1728501031746,0.93752048,140.64,140.56,87.785]
[1728501031968,7.1123,140.6,140.56,94.8992]
[1728501032171,7.1119,140.61,140.57,7.1138]
[1728501032762,7.1119,140.61,140.58,1.42233553]
[1728501032965,18.71362048,140.64,140.59,0.25098]
[1728501032966,0.93752048,140.64,140.59,0.25098]
[1728501033266,7.111,140.63,140.6,70.0]
[1728501033452,7.1104,140.64,140.61,1.42209299]
[1728501034068,7.1104,140.64,140.6,77.1123]
[1728501037076,7.1108,140.63,140.6,70.0]
[1728501037870,7.1108,140.63,140.6,0.12549]
[1728501038078,20.93752048,140.66,140.59,1.42208645]
[1728501038079,7.1118,140.62,140.59,1.42208645]
[1728501038254,7.1118,140.62,140.59,70.0]
[1728501038458,7.1118,140.62,140.58,24.8964]
[1728501039157,20.93752048,140.66,140.58,24.8964]
[1728501039356,7.1115,140.62,140.58,24.8964]
[1728501040577,7.1115,140.62,140.59,1.42224397]
[1728501041272,7.1115,140.62,140.58,24.8964]
[1728501041888,7.112,140.61,140.57,77.23929]
[1728501042053,0.93752048,140.64,140.58,0.25098]
[1728501043156,7.112,140.61,140.58,0.25098]
[1728501044155,7.1115,140.62,140.59,77.1128]
[1728501046464,15.0852,140.67,140.62,0.25098]
[1728501046668,15.0852,140.67,140.62,1.67280985]
[1728501046875,7.1097,140.66,140.62,8.78400985]
[1728501047665,7.1097,140.66,140.62,7.36218]
[1728501048274,7.1099,140.65,140.62,7.36218]
[1728501048594,7.1099,140.65,140.62,0.25098]
[1728501052983,7.1091,140.67,140.63,7.1107]
[1728501053185,7.1097,140.66,140.62,7.36218]
[1728501053359,7.1099,140.65,140.62,0.25098]
[1728501054864,0.93752048,140.68,140.6,29.975984]
[1728501055091,17.7721,140.67,140.6,0.25098]
[1728501055386,7.1112,140.63,140.59,23.1095]
[1728501055983,7.1113,140.62,140.59,15.997]
[1728501056290,17.7749,140.65,140.58,24.8955]
[1728501056468,7.1114,140.62,140.58,24.8955]
[1728501057190,7.1114,140.62,140.59,1.42224356]
[1728501059883,7.111,140.63,140.59,8.53504356]
[1728501060300,7.1114,140.62,140.58,25.02099]
[1728501062377,18.71242048,140.65,140.58,17.90779]
[1728501062714,7.111,140.63,140.59,77.36368]
[1728501062880,7.111,140.63,140.59,78.78583263]
[1728501063078,7.1116,140.62,140.59,70.0]
[1728501064971,0.93752048,140.65,140.59,70.0]
[1728501065284,7.1079,140.69,140.65,7.1097]
[1728501065482,22.56722048,140.7,140.66,1.42170433]
[1728501065483,7.1083,140.68,140.66,1.42170433]
[1728501065685,7.1083,140.68,140.63,70.0]
[1728501065686,7.1091,140.67,140.63,77.1107]
[1728501066083,7.1091,140.67,140.63,7.1107]
[1728501068207,16.26872048,140.7,140.62,3.82202973]
[1728501068388,7.1096,140.66,140.63,0.25098]
[1728501068697,7.1096,140.66,140.63,7.36178]
[1728501068898,7.1098,140.65,140.62,10.93322973]
[1728501069103,7.1098,140.65,140.61,31.2158]
[1728501069393,17.7709,140.68,140.61,17.7785]
[1728501069599,17.7709,140.68,140.6,10.93437242]
[1728501069600,7.1106,140.64,140.6,10.93437242]
[1728501070403,20.93752048,140.67,140.58,17.7823]
[1728501070574,17.7734,140.66,140.58,17.7823]
[1728501070802,7.111,140.63,140.59,10.93571059]
[1728501071686,7.1104,140.64,140.6,8.5344865]
[1728501071873,7.111,140.63,140.59,77.1127]
[1728501072074,7.111,140.63,140.6,8.5344967]
[1728501072487,7.1105,140.64,140.6,8.5344967]
[1728501073193,0.93752048,140.66,140.6,19.2022967]
[1728501073397,7.1103,140.64,140.6,26.3144967]
[1728501074281,7.111,140.63,140.6,17.7801]
[1728501074509,7.1114,140.62,140.58,7.36398]
[1728501074992,7.1114,140.62,140.59,12.35892836]
[1728501075189,7.1114,140.62,140.59,3.82427723]
[1728501075589,7.1121,140.61,140.57,94.8977]
[1728501075901,7.1115,140.62,140.58,8.53563007]
[1728501076489,16.4223,140.65,140.59,70.25098]
[1728501076711,16.4223,140.65,140.6,8.53401562]
[1728501076885,7.1109,140.63,140.59,95.14568]
[1728501077202,7.1114,140.62,140.59,18.03298]
[1728501077732,7.1114,140.62,140.59,25.14578]
[1728501078283,7.1106,140.64,140.6,7.112]
[1728501078778,7.1106,140.64,140.6,10.9376216]
[1728501079910,7.1106,140.64,140.6,7.112]
[1728501080886,16.4223,140.65,140.6,7.112]
[1728501081085,7.1108,140.63,140.59,25.14568]
[1728501081900,7.1108,140.63,140.59,95.14568]
[1728501082587,7.1108,140.63,140.6,1.42215377]
[1728501082991,7.1108,140.63,140.59,95.14568]
[1728501083589,7.1108,140.63,140.6,1.42215436]
[1728501085184,0.93752048,140.64,140.59,18.03298]
[1728501085376,17.35982048,140.65,140.59,88.03298]
[1728501085577,7.111,140.63,140.59,95.14558]
[1728501088904,7.112,140.61,140.57,94.8984]
[1728501089111,7.112,140.61,140.58,3.82646839]
[1728501089307,7.112,140.61,140.59,1.42231638]
[1728501090203,0.93752048,140.64,140.59,1.42231638]
[1728501090388,0.93752048,140.64,140.6,1.4223039]
[1728501090389,7.1115,140.62,140.6,1.4223039]
[1728501091514,7.1115,140.62,140.59,1.42230407]
[1728501093112,7.1115,140.62,140.59,8.53500407]
[1728501093800,0.93752048,140.64,140.6,7.1122]
[1728501094113,16.4223,140.65,140.61,1.4222013]
[1728501094114,7.111,140.63,140.61,1.4222013]
[1728501094987,7.111,140.63,140.59,24.8944]
[1728501095814,17.35982048,140.65,140.59,24.8944]
[1728501096006,7.1114,140.62,140.59,24.8944]
[1728501096400,16.4223,140.65,140.59,87.7817]
[1728501096599,7.1089,140.67,140.63,7.1106]
[1728501096947,16.90592048,140.69,140.64,1.42181016]
[1728501097216,7.1088,140.67,140.64,8.53211016]